[Event "Early-Titled-Tuesday-Blitz-September-12-2023"]
[Site "Chess.com"]
[Date "2023.09.12"]
[Round "2"]
[White "JiaHaoxiang"]
[Black "alexrustemov"]
[Result "1-0"]
[WhiteElo "2596"]
[BlackElo "2884"]
[TimeControl "180+1"]
[EndTime "8:19:42 PDT"]
[Termination "JiaHaoxiang won by checkmate"]

1. d4 {[%clk 0:03:00.9]} 1... d5 {[%clk 0:02:59.9]} 2. Bf4 {[%clk 0:03:00.4]}
2... Nf6 {[%clk 0:02:59.2]} 3. Nf3 {[%clk 0:03:00.1]} 3... c5 {[%clk 0:02:59.9]}
4. dxc5 {[%clk 0:02:54.2]} 4... Qa5+ {[%clk 0:02:57.5]} 5. Nbd2 {[%clk
0:02:51.8]} 5... e6 {[%clk 0:02:53.5]} 6. e3 {[%clk 0:02:51.4]} 6... Bxc5 {[%clk
0:02:45.4]} 7. Bd3 {[%clk 0:02:51.4]} 7... Be7 {[%clk 0:02:44.2]} 8. O-O {[%clk
0:02:51.5]} 8... O-O {[%clk 0:02:42.4]} 9. e4 {[%clk 0:02:49.3]} 9... dxe4
{[%clk 0:02:31.5]} 10. Nxe4 {[%clk 0:02:49.3]} 10... Nc6 {[%clk 0:02:27.2]} 11.
c3 {[%clk 0:02:47.5]} 11... Rd8 {[%clk 0:02:26.1]} 12. Qc2 {[%clk 0:02:44.5]}
12... h6 {[%clk 0:02:23.8]} 13. Rfd1 {[%clk 0:02:44.1]} 13... Nxe4 {[%clk
0:02:17.7]} 14. Bxe4 {[%clk 0:02:43.7]} 14... Bd7 {[%clk 0:02:17.7]} 15. b4
{[%clk 0:02:32.3]} 15... Qb6 {[%clk 0:02:14.2]} 16. a4 {[%clk 0:02:13.4]} 16...
Be8 {[%clk 0:02:13.6]} 17. a5 {[%clk 0:02:08.5]} 17... Qb5 {[%clk 0:02:13.4]}
18. a6 {[%clk 0:01:54.5]} 18... bxa6 {[%clk 0:02:10.4]} 19. Bd3 {[%clk
0:01:48.7]} 19... Qh5 {[%clk 0:01:53.4]} 20. Bxa6 {[%clk 0:01:39.2]} 20... Rxd1+
{[%clk 0:01:16.9]} 21. Rxd1 {[%clk 0:01:40.1]} 21... Rd8 {[%clk 0:01:16.7]} 22.
Rxd8 {[%clk 0:01:30.1]} 22... Bxd8 {[%clk 0:01:17.3]} 23. Qd2 {[%clk 0:01:24.8]}
23... Bb6 {[%clk 0:01:13.6]} 24. c4 {[%clk 0:01:17.3]} 24... Qf5 {[%clk
0:01:09.3]} 25. c5 {[%clk 0:01:08.8]} 25... Qb1+ {[%clk 0:01:01.4]} 26. Bf1
{[%clk 0:00:59.4]} 26... Bd8 {[%clk 0:00:42.6]} 27. b5 {[%clk 0:00:59.3]} 27...
Ba5 {[%clk 0:00:42]} 28. Qd6 {[%clk 0:00:46.2]} 28... Nd8 {[%clk 0:00:29.8]} 29.
c6 {[%clk 0:00:46.4]} 29... Nxc6 {[%clk 0:00:11.4]} 30. bxc6 {[%clk 0:00:45.8]}
30... Qb6 {[%clk 0:00:12]} 31. Ne5 {[%clk 0:00:36.4]} 31... Qc7 {[%clk
0:00:10.1]} 32. Nc4 {[%clk 0:00:28.6]} 32... Qxd6 {[%clk 0:00:09]} 33. Bxd6
{[%clk 0:00:29]} 33... Bc3 {[%clk 0:00:04.9]} 34. c7 {[%clk 0:00:28.5]} 34...
Bd7 {[%clk 0:00:05.5]} 35. Ne5 {[%clk 0:00:26.2]} 35... Bc8 {[%clk 0:00:05.4]}
36. Nc6 {[%clk 0:00:26.5]} 36... Kh7 {[%clk 0:00:02.3]} 37. Nxa7 {[%clk
0:00:24.8]} 37... Bb7 {[%clk 0:00:02.4]} 38. c8=Q {[%clk 0:00:25]} 38... Bxc8
{[%clk 0:00:02.8]} 39. Nxc8 {[%clk 0:00:25.9]} 39... f5 {[%clk 0:00:02.8]} 40.
Nb6 {[%clk 0:00:25.6]} 40... Kg6 {[%clk 0:00:02.8]} 41. Nc4 {[%clk 0:00:26]}
41... Kf6 {[%clk 0:00:02.7]} 42. g3 {[%clk 0:00:25.4]} 42... e5 {[%clk 0:00:03]}
43. f3 {[%clk 0:00:25.6]} 43... h5 {[%clk 0:00:02.9]} 44. Kf2 {[%clk 0:00:26]}
44... g5 {[%clk 0:00:03.2]} 45. Ke3 {[%clk 0:00:26.4]} 45... g4 {[%clk
0:00:03.5]} 46. fxg4 {[%clk 0:00:26.3]} 46... hxg4 {[%clk 0:00:03.4]} 47. Bd3
{[%clk 0:00:26.1]} 47... Bd4+ {[%clk 0:00:03.7]} 48. Ke2 {[%clk 0:00:26.1]}
48... Ke6 {[%clk 0:00:04.3]} 49. Bc7 {[%clk 0:00:25.8]} 49... Bg1 {[%clk
0:00:04.5]} 50. Bxe5 {[%clk 0:00:23.9]} 50... Bxh2 {[%clk 0:00:04.9]} 51. Bf4
{[%clk 0:00:24.5]} 51... Bg1 {[%clk 0:00:05]} 52. Ne3 {[%clk 0:00:24.7]} 52...
Kf6 {[%clk 0:00:03.5]} 53. Nxf5 {[%clk 0:00:24.6]} 53... Bc5 {[%clk 0:00:03.5]}
54. Ne3 {[%clk 0:00:24.5]} 54... Ke6 {[%clk 0:00:03.9]} 55. Nxg4 {[%clk
0:00:24.8]} 55... Be7 {[%clk 0:00:04]} 56. Kf3 {[%clk 0:00:24.6]} 56... Bb4
{[%clk 0:00:03.5]} 57. Ne3 {[%clk 0:00:24.8]} 57... Be1 {[%clk 0:00:03.4]} 58.
g4 {[%clk 0:00:24.9]} 58... Bh4 {[%clk 0:00:03.6]} 59. Bf5+ {[%clk 0:00:24.7]}
59... Kf7 {[%clk 0:00:03.3]} 60. Ke4 {[%clk 0:00:24.7]} 60... Bd8 {[%clk
0:00:03.1]} 61. Be5 {[%clk 0:00:24.9]} 61... Be7 {[%clk 0:00:03.2]} 62. Nd5
{[%clk 0:00:25.3]} 62... Bd8 {[%clk 0:00:03.9]} 63. Bd7 {[%clk 0:00:25.3]} 63...
Bg5 {[%clk 0:00:03.7]} 64. Kf5 {[%clk 0:00:25.8]} 64... Bd8 {[%clk 0:00:03.9]}
65. Be6+ {[%clk 0:00:26]} 65... Ke8 {[%clk 0:00:03.6]} 66. Bd6 {[%clk
0:00:26.2]} 66... Bh4 {[%clk 0:00:02.9]} 67. Nf6+ {[%clk 0:00:26.5]} 67... Kd8
{[%clk 0:00:02.9]} 68. Be5 {[%clk 0:00:26.5]} 68... Ke7 {[%clk 0:00:01.5]} 69.
Bd5 {[%clk 0:00:25.9]} 69... Kd8 {[%clk 0:00:01.8]} 70. g5 {[%clk 0:00:26.1]}
70... Bxg5 {[%clk 0:00:01.7]} 71. Kxg5 {[%clk 0:00:26.6]} 71... Ke7 {[%clk
0:00:02.6]} 72. Kf5 {[%clk 0:00:26.9]} 72... Kf8 {[%clk 0:00:02.5]} 73. Ne4
{[%clk 0:00:25.5]} 73... Ke7 {[%clk 0:00:03.4]} 74. Be6 {[%clk 0:00:25.7]} 74...
Kd8 {[%clk 0:00:03.7]} 75. Bd6 {[%clk 0:00:25.2]} 75... Ke8 {[%clk 0:00:03.9]}
76. Ke5 {[%clk 0:00:24.7]} 76... Kd8 {[%clk 0:00:04.8]} 77. Kd5 {[%clk
0:00:25.2]} 77... Ke8 {[%clk 0:00:05.4]} 78. Kc6 {[%clk 0:00:25.9]} 78... Kd8
{[%clk 0:00:06.3]} 79. Bf7 {[%clk 0:00:26.2]} 79... Kc8 {[%clk 0:00:06.3]} 80.
Be7 {[%clk 0:00:26.9]} 80... Kb8 {[%clk 0:00:06.6]} 81. Kb6 {[%clk 0:00:27.6]}
81... Kc8 {[%clk 0:00:07.5]} 82. Be6+ {[%clk 0:00:28]} 82... Kb8 {[%clk
0:00:08.1]} 83. Bd6+ {[%clk 0:00:28.8]} 83... Ka8 {[%clk 0:00:08.6]} 84. Bd5#
{[%clk 0:00:29.7]} 1-0

[Event "Early-Titled-Tuesday-Blitz-September-12-2023"]
[Site "Chess.com"]
[Date "2023.09.12"]
[Round "2"]
[White "Masterbeaterr"]
[Black "masnyszachistaaa"]
[Result "1/2-1/2"]
[WhiteElo "2384"]
[BlackElo "2552"]
[TimeControl "180+1"]
[EndTime "8:19:44 PDT"]
[Termination "Game drawn by repetition"]

1. d4 {[%clk 0:03:00.9]} 1... Nf6 {[%clk 0:02:58.2]} 2. c4 {[%clk 0:03:00.9]}
2... e6 {[%clk 0:02:58.1]} 3. Nf3 {[%clk 0:03:00.4]} 3... c5 {[%clk 0:02:54.6]}
4. e3 {[%clk 0:02:57]} 4... d5 {[%clk 0:02:50.8]} 5. cxd5 {[%clk 0:02:56]} 5...
Nxd5 {[%clk 0:02:49.7]} 6. Nc3 {[%clk 0:02:56.2]} 6... Nc6 {[%clk 0:02:49.1]} 7.
Be2 {[%clk 0:02:52.5]} 7... Nxc3 {[%clk 0:02:46.6]} 8. bxc3 {[%clk 0:02:52.1]}
8... Be7 {[%clk 0:02:47.2]} 9. O-O {[%clk 0:02:51.8]} 9... O-O {[%clk
0:02:47.7]} 10. Rb1 {[%clk 0:02:49.5]} 10... b6 {[%clk 0:02:47.5]} 11. Qc2
{[%clk 0:02:46.8]} 11... Bb7 {[%clk 0:02:44.9]} 12. Rd1 {[%clk 0:02:47.1]} 12...
Qc7 {[%clk 0:02:44.5]} 13. e4 {[%clk 0:02:46.1]} 13... Na5 {[%clk 0:02:42.3]}
14. d5 {[%clk 0:02:44.3]} 14... exd5 {[%clk 0:02:43.2]} 15. exd5 {[%clk
0:02:43.9]} 15... Rad8 {[%clk 0:02:42.5]} 16. c4 {[%clk 0:02:41]} 16... Bf6
{[%clk 0:02:42.6]} 17. Bg5 {[%clk 0:02:33]} 17... Qd6 {[%clk 0:02:38.5]} 18.
Bxf6 {[%clk 0:02:30.3]} 18... Qxf6 {[%clk 0:02:39.4]} 19. Bd3 {[%clk 0:02:28.4]}
19... g6 {[%clk 0:02:36.2]} 20. Re1 {[%clk 0:02:28.6]} 20... Rfe8 {[%clk
0:02:36.5]} 21. Qa4 {[%clk 0:02:19]} 21... Rxe1+ {[%clk 0:02:30.5]} 22. Rxe1
{[%clk 0:02:19.9]} 22... Qc3 {[%clk 0:02:29.8]} 23. Bf1 {[%clk 0:02:15.4]} 23...
Kg7 {[%clk 0:02:15.7]} 24. Re7 {[%clk 0:02:15]} 24... Qf6 {[%clk 0:02:05.8]} 25.
Re5 {[%clk 0:02:05.5]} 25... Bc8 {[%clk 0:02:05.2]} 26. Qc2 {[%clk 0:01:52.9]}
26... Bg4 {[%clk 0:01:57.8]} 27. Re3 {[%clk 0:01:52.6]} 27... Rd7 {[%clk
0:01:50.9]} 28. Ne5 {[%clk 0:01:51.6]} 28... Bf5 {[%clk 0:01:24.1]} 29. Nxd7
{[%clk 0:01:49]} 29... Bxd7 {[%clk 0:01:25]} 30. Qc3 {[%clk 0:01:41.8]} 30...
Qxc3 {[%clk 0:01:25]} 31. Rxc3 {[%clk 0:01:42.7]} 31... Kf6 {[%clk 0:01:25]} 32.
f4 {[%clk 0:01:42.5]} 32... Nb7 {[%clk 0:01:23.7]} 33. Kf2 {[%clk 0:01:41.5]}
33... h5 {[%clk 0:01:10.2]} 34. g3 {[%clk 0:01:41.1]} 34... Bf5 {[%clk
0:01:07.6]} 35. Ra3 {[%clk 0:01:37.1]} 35... Na5 {[%clk 0:01:07.3]} 36. Ke3
{[%clk 0:01:34.3]} 36... Ke7 {[%clk 0:01:05.8]} 37. Bd3 {[%clk 0:01:32.6]} 37...
Bd7 {[%clk 0:01:02.8]} 38. Rxa5 {[%clk 0:01:22.2]} 38... bxa5 {[%clk 0:01:01.9]}
39. Bc2 {[%clk 0:01:18.7]} 39... Kd6 {[%clk 0:00:54]} 40. f5 {[%clk 0:01:16.4]}
40... g5 {[%clk 0:00:47.2]} 41. h4 {[%clk 0:01:16.4]} 41... gxh4 {[%clk
0:00:45.5]} 42. gxh4 {[%clk 0:01:17.3]} 42... Ke5 {[%clk 0:00:45.4]} 43. Bd1
{[%clk 0:01:14.5]} 43... Bxf5 {[%clk 0:00:42.9]} 44. Bxh5 {[%clk 0:01:14.2]}
44... f6 {[%clk 0:00:43.3]} 45. Bf7 {[%clk 0:01:12.3]} 45... Bb1 {[%clk
0:00:42.3]} 46. a3 {[%clk 0:01:11.7]} 46... f5 {[%clk 0:00:41.9]} 47. h5 {[%clk
0:01:09.8]} 47... f4+ {[%clk 0:00:41.8]} 48. Kf2 {[%clk 0:01:08.3]} 48... Kf6
{[%clk 0:00:24.8]} 49. Be8 {[%clk 0:01:00.5]} 49... Bd3 {[%clk 0:00:14.1]} 50.
Bb5 {[%clk 0:00:49.8]} 50... Be4 {[%clk 0:00:08]} 51. Ba6 {[%clk 0:00:41.9]}
51... Ke5 {[%clk 0:00:05.5]} 52. Bc8 {[%clk 0:00:38.1]} 52... Kf6 {[%clk
0:00:04.5]} 53. Bg4 {[%clk 0:00:35.6]} 53... Bd3 {[%clk 0:00:03]} 54. Be2 {[%clk
0:00:35.8]} 54... Be4 {[%clk 0:00:03]} 55. Kg1 {[%clk 0:00:30.1]} 55... Ke5
{[%clk 0:00:02.6]} 56. Kh2 {[%clk 0:00:29.8]} 56... Kf6 {[%clk 0:00:02.9]} 57.
Kh3 {[%clk 0:00:30.1]} 57... Kg5 {[%clk 0:00:02.3]} 58. d6 {[%clk 0:00:30.5]}
58... Bf5+ {[%clk 0:00:02.3]} 59. Kg2 {[%clk 0:00:28.5]} 59... Bd7 {[%clk
0:00:02.6]} 60. Kf3 {[%clk 0:00:27.4]} 60... Bc6+ {[%clk 0:00:02.6]} 61. Kf2
{[%clk 0:00:27.5]} 61... Bd7 {[%clk 0:00:03.5]} 62. Bf3 {[%clk 0:00:27.6]} 62...
Kf5 {[%clk 0:00:02.4]} 63. Ke2 {[%clk 0:00:27.6]} 63... Kg5 {[%clk 0:00:02.9]}
64. Kd3 {[%clk 0:00:27.9]} 64... Bf5+ {[%clk 0:00:02.6]} 65. Kc3 {[%clk
0:00:27.8]} 65... Bd7 {[%clk 0:00:02.8]} 66. Kd2 {[%clk 0:00:27]} 66... Kf5
{[%clk 0:00:03.2]} 67. Kd3 {[%clk 0:00:26.5]} 67... Ke5 {[%clk 0:00:03]} 68. h6
{[%clk 0:00:26.9]} 68... Bf5+ {[%clk 0:00:02]} 69. Kc3 {[%clk 0:00:26.9]} 69...
Kxd6 {[%clk 0:00:02.6]} 70. Kd2 {[%clk 0:00:26]} 70... Ke5 {[%clk 0:00:03.3]}
71. Ke2 {[%clk 0:00:26.4]} 71... Kd4 {[%clk 0:00:03.7]} 72. Bd5 {[%clk
0:00:25.5]} 72... Bg4+ {[%clk 0:00:03.9]} 73. Kd2 {[%clk 0:00:24.5]} 73... Bf5
{[%clk 0:00:04.6]} 74. Ke2 {[%clk 0:00:24.8]} 74... Bg6 {[%clk 0:00:04.3]} 75.
Kf3 {[%clk 0:00:24.8]} 75... Ke5 {[%clk 0:00:04.8]} 76. Bc6 {[%clk 0:00:23.8]}
76... Bh5+ {[%clk 0:00:05.2]} 77. Kf2 {[%clk 0:00:23.2]} 77... Bg6 {[%clk
0:00:06.1]} 78. Bd5 {[%clk 0:00:23.6]} 78... Bd3 {[%clk 0:00:06.5]} 79. Kf3
{[%clk 0:00:22.8]} 79... Bf5 {[%clk 0:00:06.5]} 80. Bc6 {[%clk 0:00:22.5]} 80...
Bg6 {[%clk 0:00:06.7]} 81. Bd5 {[%clk 0:00:22.7]} 81... Bh7 {[%clk 0:00:07]} 82.
Bc6 {[%clk 0:00:22.6]} 82... Bd3 {[%clk 0:00:07.2]} 83. Bd5 {[%clk 0:00:22.7]}
83... Bc2 {[%clk 0:00:07.3]} 84. Kg4 {[%clk 0:00:21.2]} 84... Bf5+ {[%clk
0:00:06.5]} 85. Kf3 {[%clk 0:00:20.8]} 85... Bd3 {[%clk 0:00:06.7]} 86. Kg4
{[%clk 0:00:21]} 86... Bf5+ {[%clk 0:00:06.9]} 87. Kf3 {[%clk 0:00:21.6]} 87...
Bd3 {[%clk 0:00:07.3]} 88. Kg4 {[%clk 0:00:22.1]} 88... Bf5+ {[%clk 0:00:07.5]}
1/2-1/2

[Event "Early-Titled-Tuesday-Blitz-September-12-2023"]
[Site "Chess.com"]
[Date "2023.09.12"]
[Round "2"]
[White "attack2mateU"]
[Black "drragnar1"]
[Result "1-0"]
[WhiteElo "2727"]
[BlackElo "2387"]
[TimeControl "180+1"]
[EndTime "8:19:45 PDT"]
[Termination "attack2mateU won by checkmate"]

1. e4 {[%clk 0:03:00.9]} 1... g6 {[%clk 0:02:53]} 2. d4 {[%clk 0:02:58.8]} 2...
Bg7 {[%clk 0:02:53.4]} 3. Nc3 {[%clk 0:02:59.4]} 3... d6 {[%clk 0:02:53.6]} 4.
Be3 {[%clk 0:03:00.1]} 4... Nf6 {[%clk 0:02:53.7]} 5. Qd2 {[%clk 0:03:00.4]}
5... Ng4 {[%clk 0:02:53]} 6. Bg5 {[%clk 0:02:59]} 6... h6 {[%clk 0:02:53.3]} 7.
Bh4 {[%clk 0:02:59.6]} 7... g5 {[%clk 0:02:53.5]} 8. Bg3 {[%clk 0:03:00.3]} 8...
e5 {[%clk 0:02:53.7]} 9. dxe5 {[%clk 0:02:54.5]} 9... Nxe5 {[%clk 0:02:51.3]}
10. h4 {[%clk 0:02:51.7]} 10... Nbc6 {[%clk 0:02:43.4]} 11. O-O-O {[%clk
0:02:48.4]} 11... Be6 {[%clk 0:02:41]} 12. Kb1 {[%clk 0:02:47.9]} 12... g4
{[%clk 0:02:21.5]} 13. f4 {[%clk 0:02:41]} 13... gxf3 {[%clk 0:02:20]} 14. gxf3
{[%clk 0:02:40.7]} 14... Nc4 {[%clk 0:01:52.6]} 15. Bxc4 {[%clk 0:02:40.3]}
15... Bxc4 {[%clk 0:01:53.5]} 16. Nge2 {[%clk 0:02:37]} 16... Bxe2 {[%clk
0:01:43]} 17. Nxe2 {[%clk 0:02:35.6]} 17... Qf6 {[%clk 0:01:41.2]} 18. Qc3
{[%clk 0:02:17.1]} 18... Qxc3 {[%clk 0:01:28.2]} 19. Nxc3 {[%clk 0:02:18]} 19...
Bxc3 {[%clk 0:01:27.5]} 20. bxc3 {[%clk 0:02:18.9]} 20... O-O-O {[%clk
0:01:25.2]} 21. h5 {[%clk 0:02:12.3]} 21... Rdg8 {[%clk 0:01:18.6]} 22. Bf4
{[%clk 0:02:11.9]} 22... Ne5 {[%clk 0:01:16.5]} 23. Rd5 {[%clk 0:01:56.2]} 23...
Nxf3 {[%clk 0:01:10.1]} 24. Rf5 {[%clk 0:01:55.6]} 24... Rh7 {[%clk 0:00:34.6]}
25. Bxh6 {[%clk 0:01:40.2]} 25... Rxh6 {[%clk 0:00:24.8]} 26. Rxf3 {[%clk
0:01:40.5]} 26... Rgh8 {[%clk 0:00:24.2]} 27. Rf5 {[%clk 0:01:37.9]} 27... R8h7
{[%clk 0:00:23.2]} 28. Kc1 {[%clk 0:01:35]} 28... Kd7 {[%clk 0:00:23.6]} 29. Kd2
{[%clk 0:01:35.4]} 29... Ke6 {[%clk 0:00:24.1]} 30. Ke3 {[%clk 0:01:35.7]} 30...
f6 {[%clk 0:00:24.4]} 31. Kf4 {[%clk 0:01:33.2]} 31... Rg7 {[%clk 0:00:24.8]}
32. Rh4 {[%clk 0:01:31.6]} 32... Rg2 {[%clk 0:00:24.5]} 33. Rg4 {[%clk
0:01:32.1]} 33... Rf2+ {[%clk 0:00:24.4]} 34. Kg3 {[%clk 0:01:30.6]} 34... Rxf5
{[%clk 0:00:25.3]} 35. exf5+ {[%clk 0:01:31.4]} 35... Kxf5 {[%clk 0:00:24.8]}
36. Kh4 {[%clk 0:01:32.3]} 36... Rh7 {[%clk 0:00:23.6]} 37. Rg1 {[%clk
0:01:24.2]} 37... Ke5 {[%clk 0:00:23.5]} 38. Re1+ {[%clk 0:01:15.8]} 38... Kd5
{[%clk 0:00:22.3]} 39. Rf1 {[%clk 0:01:04.4]} 39... Ke6 {[%clk 0:00:22.3]} 40.
c4 {[%clk 0:00:47]} 40... b6 {[%clk 0:00:20.3]} 41. a4 {[%clk 0:00:46.3]} 41...
a5 {[%clk 0:00:20.7]} 42. Rd1 {[%clk 0:00:42.7]} 42... Kd7 {[%clk 0:00:18.6]}
43. c5 {[%clk 0:00:39.3]} 43... bxc5 {[%clk 0:00:18.1]} 44. Rb1 {[%clk
0:00:39.6]} 44... f5 {[%clk 0:00:15.6]} 45. Kg5 {[%clk 0:00:39.5]} 45... f4
{[%clk 0:00:15.7]} 46. Kg6 {[%clk 0:00:35.5]} 46... Rh8 {[%clk 0:00:14.3]} 47.
h6 {[%clk 0:00:35.9]} 47... Ke6 {[%clk 0:00:14.1]} 48. Re1+ {[%clk 0:00:17]}
48... Kd5 {[%clk 0:00:14.5]} 49. Kg7 {[%clk 0:00:17.3]} 49... Rd8 {[%clk
0:00:11.3]} 50. h7 {[%clk 0:00:14.9]} 50... Rd7+ {[%clk 0:00:11.3]} 51. Kg6
{[%clk 0:00:14.9]} 51... Rxh7 {[%clk 0:00:12.2]} 52. Kxh7 {[%clk 0:00:15.8]}
52... f3 {[%clk 0:00:08.4]} 53. Re3 {[%clk 0:00:16.4]} 53... Kc4 {[%clk
0:00:07.7]} 54. Rxf3 {[%clk 0:00:16.9]} 54... d5 {[%clk 0:00:07.9]} 55. Rf7
{[%clk 0:00:14.2]} 55... Kb4 {[%clk 0:00:07]} 56. Rxc7 {[%clk 0:00:14.5]} 56...
c4 {[%clk 0:00:07.5]} 57. Kg6 {[%clk 0:00:11.2]} 57... d4 {[%clk 0:00:06.6]} 58.
Kf5 {[%clk 0:00:11]} 58... d3 {[%clk 0:00:06.9]} 59. cxd3 {[%clk 0:00:09.2]}
59... cxd3 {[%clk 0:00:07.8]} 60. Ke4 {[%clk 0:00:09.7]} 60... d2 {[%clk
0:00:07.8]} 61. Rd7 {[%clk 0:00:10.2]} 61... Kc3 {[%clk 0:00:08.1]} 62. Ke3
{[%clk 0:00:10.6]} 62... Kb3 {[%clk 0:00:05.5]} 63. Rd4 {[%clk 0:00:08]} 63...
d1=Q {[%clk 0:00:03]} 64. Rxd1 {[%clk 0:00:08.5]} 64... Kxa4 {[%clk 0:00:03.7]}
65. Rb1 {[%clk 0:00:05.8]} 65... Ka3 {[%clk 0:00:04]} 66. Kd3 {[%clk 0:00:06.5]}
66... a4 {[%clk 0:00:04.5]} 67. Kc2 {[%clk 0:00:07.2]} 67... Ka2 {[%clk
0:00:04.6]} 68. Rb4 {[%clk 0:00:05.3]} 68... a3 {[%clk 0:00:05]} 69. Kc3 {[%clk
0:00:04.7]} 69... Ka1 {[%clk 0:00:04.8]} 70. Kb3 {[%clk 0:00:05]} 70... a2
{[%clk 0:00:01.9]} 71. Rh4 {[%clk 0:00:05.4]} 71... Kb1 {[%clk 0:00:02.8]} 72.
Rh1# {[%clk 0:00:06.1]} 1-0

[Event "Early-Titled-Tuesday-Blitz-September-12-2023"]
[Site "Chess.com"]
[Date "2023.09.12"]
[Round "2"]
[White "AniJak"]
[Black "VSanduleac"]
[Result "1-0"]
[WhiteElo "2391"]
[BlackElo "2526"]
[TimeControl "180+1"]
[EndTime "8:19:48 PDT"]
[Termination "AniJak won by resignation"]

1. e4 {[%clk 0:03:00.9]} 1... g6 {[%clk 0:02:59.3]} 2. d4 {[%clk 0:02:58.6]}
2... Bg7 {[%clk 0:02:59.8]} 3. Nc3 {[%clk 0:02:58.6]} 3... c6 {[%clk 0:02:59.9]}
4. Be3 {[%clk 0:02:56.8]} 4... d5 {[%clk 0:02:58.9]} 5. f3 {[%clk 0:02:57]} 5...
Qb6 {[%clk 0:02:57.7]} 6. exd5 {[%clk 0:02:44.9]} 6... Qxb2 {[%clk 0:02:55.9]}
7. Nge2 {[%clk 0:02:36.9]} 7... Nf6 {[%clk 0:02:52.4]} 8. Rb1 {[%clk 0:02:31.5]}
8... Qa3 {[%clk 0:02:51.5]} 9. Rb3 {[%clk 0:02:25.5]} 9... Qa5 {[%clk
0:02:50.8]} 10. dxc6 {[%clk 0:02:24]} 10... bxc6 {[%clk 0:02:48.4]} 11. Qd2
{[%clk 0:02:08.6]} 11... O-O {[%clk 0:02:47.3]} 12. Nf4 {[%clk 0:02:07.4]} 12...
Qc7 {[%clk 0:02:43]} 13. Bc4 {[%clk 0:02:03.3]} 13... Nbd7 {[%clk 0:02:42]} 14.
O-O {[%clk 0:02:01.3]} 14... Nb6 {[%clk 0:02:41.6]} 15. Bd3 {[%clk 0:01:53.3]}
15... Nbd5 {[%clk 0:02:40.6]} 16. Ncxd5 {[%clk 0:01:50.1]} 16... Nxd5 {[%clk
0:02:40]} 17. Nxd5 {[%clk 0:01:48.8]} 17... cxd5 {[%clk 0:02:40]} 18. Bf4 {[%clk
0:01:41.3]} 18... Bxd4+ {[%clk 0:02:37.2]} 19. Kh1 {[%clk 0:01:40.3]} 19... Be5
{[%clk 0:02:37.7]} 20. Bxe5 {[%clk 0:01:35.5]} 20... Qxe5 {[%clk 0:02:36.8]} 21.
Re1 {[%clk 0:01:35]} 21... Qd6 {[%clk 0:02:36.6]} 22. Qg5 {[%clk 0:01:28.4]}
22... e6 {[%clk 0:02:27.9]} 23. h4 {[%clk 0:01:20]} 23... Qd8 {[%clk 0:02:24]}
24. Qg3 {[%clk 0:01:18]} 24... Qf6 {[%clk 0:02:23.3]} 25. Rb4 {[%clk 0:01:13]}
25... a5 {[%clk 0:02:20.7]} 26. Rf4 {[%clk 0:01:12]} 26... Qg7 {[%clk
0:02:20.2]} 27. h5 {[%clk 0:01:03.8]} 27... Ba6 {[%clk 0:02:19.1]} 28. hxg6
{[%clk 0:00:54.4]} 28... hxg6 {[%clk 0:02:18.1]} 29. Bxg6 {[%clk 0:00:49.6]}
29... fxg6 {[%clk 0:02:15.6]} 30. Rxe6 {[%clk 0:00:39.7]} 30... Rxf4 {[%clk
0:02:07.6]} 31. Rxg6 {[%clk 0:00:37.3]} 31... Rf7 {[%clk 0:02:06.9]} 32. Rxg7+
{[%clk 0:00:35]} 32... Rxg7 {[%clk 0:02:06.6]} 33. Qe5 {[%clk 0:00:30.3]} 33...
Bc4 {[%clk 0:02:05.3]} 34. a3 {[%clk 0:00:28.4]} 34... Rf8 {[%clk 0:02:03.3]}
35. f4 {[%clk 0:00:23.5]} 35... Rff7 {[%clk 0:01:55.8]} 36. Kh2 {[%clk
0:00:18.5]} 36... Bf1 {[%clk 0:01:47.5]} 37. g3 {[%clk 0:00:17.7]} 37... Bc4
{[%clk 0:01:43.6]} 38. Kh3 {[%clk 0:00:16]} 38... a4 {[%clk 0:01:37.2]} 39. g4
{[%clk 0:00:14.7]} 39... d4 {[%clk 0:01:23]} 40. Qxd4 {[%clk 0:00:13.5]} 40...
Be6 {[%clk 0:01:22.6]} 41. f5 {[%clk 0:00:13.8]} 41... Bd7 {[%clk 0:01:22.1]}
42. Kh4 {[%clk 0:00:10.5]} 42... Rh7+ {[%clk 0:01:21.5]} 43. Kg3 {[%clk
0:00:10.4]} 43... Rhg7 {[%clk 0:01:21.4]} 44. Kh4 {[%clk 0:00:09.7]} 44... Kh7
{[%clk 0:01:18.8]} 45. Qd5 {[%clk 0:00:09.5]} 45... Rf6 {[%clk 0:01:17]} 46. Qd4
{[%clk 0:00:07.5]} 46... Rgf7 {[%clk 0:01:13.5]} 47. Kg3 {[%clk 0:00:05.9]}
47... Kg8 {[%clk 0:01:11.7]} 48. c4 {[%clk 0:00:05.9]} 48... Rc6 {[%clk
0:01:06.3]} 49. c5 {[%clk 0:00:06]} 49... Kf8 {[%clk 0:01:05.4]} 50. Qd5 {[%clk
0:00:06.3]} 50... Be8 {[%clk 0:01:03.4]} 51. Qd4 {[%clk 0:00:06.2]} 51... Ra6
{[%clk 0:01:01.4]} 52. Qd5 {[%clk 0:00:05.4]} 52... Rh6 {[%clk 0:01:00.9]} 53.
Qd4 {[%clk 0:00:05.1]} 53... Rg7 {[%clk 0:00:59.4]} 54. Qd5 {[%clk 0:00:03.6]}
54... Rf6 {[%clk 0:00:58.1]} 55. Kf4 {[%clk 0:00:03.1]} 55... Bd7 {[%clk
0:00:55.5]} 56. Qd4 {[%clk 0:00:03.4]} 56... Rff7 {[%clk 0:00:55.2]} 57. Qd6+
{[%clk 0:00:03.1]} 57... Kg8 {[%clk 0:00:54.5]} 58. Qd5 {[%clk 0:00:03.7]} 58...
Kh7 {[%clk 0:00:54.2]} 59. c6 {[%clk 0:00:04]} 59... Bc8 {[%clk 0:00:52.7]} 60.
Qd6 {[%clk 0:00:04.1]} 60... Kg8 {[%clk 0:00:49.6]} 61. Qd5 {[%clk 0:00:03.3]}
61... Kh8 {[%clk 0:00:49]} 62. Qd8+ {[%clk 0:00:03.3]} 62... Rg8 {[%clk
0:00:49.1]} 63. Qd4+ {[%clk 0:00:03.5]} 63... Kh7 {[%clk 0:00:49.1]} 64. Qd6
{[%clk 0:00:03.2]} 64... Rgg7 {[%clk 0:00:47]} 65. Qd5 {[%clk 0:00:03.4]} 65...
Ba6 {[%clk 0:00:44.1]} 66. g5 {[%clk 0:00:02.8]} 66... Bc8 {[%clk 0:00:43.7]}
67. f6 {[%clk 0:00:02.5]} 67... Kg8 {[%clk 0:00:39.5]} 68. Qd8+ {[%clk
0:00:02.2]} 68... Rf8 {[%clk 0:00:39.3]} 69. Qd5+ {[%clk 0:00:02.5]} 69... Rgf7
{[%clk 0:00:38.5]} 70. g6 {[%clk 0:00:02.3]} 70... Ba6 {[%clk 0:00:34.9]} 71.
gxf7+ {[%clk 0:00:02.4]} 71... Rxf7 {[%clk 0:00:35.5]} 72. Qd8+ {[%clk
0:00:02.2]} 72... Rf8 {[%clk 0:00:35.6]} 73. Qd5+ {[%clk 0:00:01.6]} 73... Rf7
{[%clk 0:00:35.7]} 74. Ke5 {[%clk 0:00:01.9]} 74... Be2 {[%clk 0:00:30.7]} 75.
c7 {[%clk 0:00:01.9]} 75... Bg4 {[%clk 0:00:30.3]} 76. Qd8+ {[%clk 0:00:01.7]}
76... Kh7 {[%clk 0:00:29.7]} 77. c8=Q {[%clk 0:00:01.9]} 77... Bxc8 {[%clk
0:00:29.8]} 78. Qxc8 {[%clk 0:00:02.3]} 78... Ra7 {[%clk 0:00:24.1]} 79. Qh3+
{[%clk 0:00:02.7]} 79... Kg8 {[%clk 0:00:23.3]} 80. Qg2+ {[%clk 0:00:02.9]}
80... Kf7 {[%clk 0:00:23.1]} 81. Qd5+ {[%clk 0:00:03]} 81... Kg6 {[%clk
0:00:23.2]} 82. Qe4+ {[%clk 0:00:02.2]} 82... Kh6 {[%clk 0:00:22.4]} 83. Qe3+
{[%clk 0:00:02.2]} 83... Kg6 {[%clk 0:00:22.4]} 84. Qxa7 {[%clk 0:00:03.1]}
84... Kg5 {[%clk 0:00:22.2]} 85. Qg7+ {[%clk 0:00:03.8]} 1-0